Cogmind - Beta 16 @@@ ROGUE MODE // 2025.11.04 @ 17:01:36 Player: Zish Result: Destroyed by C0-DWA(R) with Subdweller Shrapnel Launcher Performance ------------- Evolutions (0) 0 Regions Visited (2) 400 Robots Destroyed (9) 45 Value Destroyed (136) 136 Prototype IDs (0) 0 Alien Tech Used (0) 0 Bonus (0) 0 TOTAL SCORE: 581 Bonus ------- None Cogmind --------- Core Integrity 0/250 Matter 300/300 Energy 249/250 System Corruption 0% Temperature Cool (0) Movement Core (250) Ox4 Location -10/Subcaves Parts ------- > --- POWER (1) -------- Ion Engine > --- PROPULSION (2) --- (None) > --- UTILITY (2) ------ Small Storage Unit > --- WEAPON (2) ------- Hammer Hammer > --- INVENTORY (8) ---- Light Treads EM Pulse Gun Grenade Launcher Hammer Peak State ------------ > --- POWER ------------ Light Ion Engine > --- PROPULSION ------- Light Treads Light Treads > --- UTILITY ---------- Small Storage Unit > --- WEAPON ----------- EM Pulse Gun EM Pulse Gun > --- INVENTORY -------- Ion Engine EM Pulse Gun [Rating: 6] Favorites ----------- Power Light Ion Engine Engine Light Ion Engine Propulsion Light Treads Treads Light Treads Utility Small Storage Unit Storage Small Storage Unit Weapon EM Pulse Gun Energy Gun EM Pulse Gun Impact Weapon Hammer Build | -11 -10 -10 ------- Run | Yrd Mat Sub Slots Evolved . | . . . Power . | . . . Propulsion . | . . . Utility . | . . . Weapon . | . . . Parts Attached 9 | 6 3 . Power 2 | 1 1 . Engine 2 | 1 1 . Core . | . . . Reactor . | . . . Propulsion 2 | 2 . . Treads 2 | 2 . . Leg . | . . . Wheel . | . . . Hover . | . . . Flight . | . . . Utility 1 | 1 . . Device . | . . . Storage 1 | 1 . . Processor . | . . . Hackware . | . . . Protection . | . . . Artifact . | . . . Weapon 4 | 2 2 . Energy Gun 2 | 2 . . Energy Cannon . | . . . Ballistic Gun . | . . . Ballistic Cannon . | . . . Launcher . | . . . Special Weapon . | . . . Impact Weapon 2 | . 2 . Slashing Weapon . | . . . Piercing Weapon . | . . . Special Melee Weapon . | . . . Unidentified Prototypes . | . . . Parts Lost 5 | . 3 2 Power 1 | . 1 . Propulsion 2 | . . 2 Utility . | . . . Weapon 2 | . 2 . Highest Loss Streak 3 | . 3 2 To Critical Strikes . | . . . Average Backups 3 | 1 3 4 Power . | . . . Propulsion . | . . 1 Utility . | . . . Weapon 2 | . 2 3 Tool/Special . | . . . Unused Backups 4 | . . 4 Power . | . . . Propulsion 1 | . . 1 Utility . | . . . Weapon 3 | . . 3 Tool/Special . | . . . Average Slot Usage (%) 84 | . 84 85 Engine 13 | . 13 14 Treads 28 | . 28 28 Storage 14 | . 14 14 Energy Gun 18 | . 19 . Impact Weapon 9 | . 8 28 Peak Build Rating 6 | 6 6 6 Average Rating 5 | 4 5 5 On Entrance 4 | . 6 6 Avg Prop Armor Cover (%) . | . . . Naked Turns . | . . . Heaviest Build 14 | 12 14 14 Greatest Support 40 | 40 40 40 Greatest Overweight (x) 4 | . . 4 Average Overweight (x) . | . . . Largest Inventory Capacity 8 | 8 8 8 Average Capacity 7 | 6 8 8 Most Carried 6 | 5 6 4 Average Carried 3 | 1 3 4 Final Capacity 8 | 8 8 8 Final Carried 4 | 2 4 4 Class Distribution -------------------- 100% | Mutant Dominant Class ---------------- Mutant | -10/Materials Mutant | -10/Subcaves Resources | -11 -10 -10 ----------- Run | Yrd Mat Sub Matter Collected 275 | 175 100 . Remotely . | . . . Salvage Created 261 | 59 202 . Parts 13 | 3 10 . Haulers Intercepted . | . . . Recyclers Shooed . | . . . Parts Field Recycled . | . . . Retrieved Matter . | . . . Parts Self-Destructed . | . . . Prevented . | . . . Parts Restored . | . . . Kills | -11 -10 -10 ------- Run | Yrd Mat Sub Combat Hostiles Destroyed 6 | . 6 . Melee 3 | . 3 . Guns 2 | . 2 . Classes Destroyed 4 | 1 3 . Recycler 2 | 1 1 . Watcher 1 | . 1 . Swarmer 4 | . 4 . Grunt 2 | . 2 . Best Kill Streak 2 | 1 2 . Combat Bots Only 2 | . 2 . Max Kills in Single Turn 2 | 1 2 . Gunslinging 1 | . 1 . Exploded . | . . . Melee 1 | . 1 . Uniques/NPCs Destroyed . | . . . Combat | -11 -10 -10 -------- Run | Yrd Mat Sub Hostile Shots Fired 97 | . 90 7 Missed 22 | . 20 2 Hits 75 | . 70 5 Projectile 75 | . 70 5 AOE 4 | . . 4 Critical Strikes 1 | . . 1 Damage Taken 920 | . 650 270 Core 270 | . 86 184 Absorbed by Shields . | . . . Core Remaining (%) 100 | 100 . . Volleys Fired 13 | 2 11 . Largest 2 | 2 2 . Hottest 80 | 80 80 . Shots Fired 26 | 4 22 . Gun 26 | 4 22 . Cannon . | . . . Launcher . | . . . Special . | . . . Kinetic . | . . . Thermal . | . . . Explosive . | . . . Electromagnetic 26 | 4 22 . Robot Hit Streak 9 | 1 9 . Robot Miss Streak 4 | 1 4 . Penetration Max . | . . . Secondary Targets 1 | . 1 . Max Gunslinging Chain 1 | . 1 . Shots Hit Robots 27 | 2 25 . Core Hits 9 | 2 7 . Critical Kills 1 | . 1 . Critical Parts Destroyed 1 | . 1 . Critical Strikes 2 | . 2 . Smash 2 | . 2 . Melee Attacks 25 | . 25 . Impact 25 | . 25 . Slashing . | . . . Piercing . | . . . Sneak Attacks 1 | . 1 . Combat Hostiles . | . . . Follow-up Attacks 5 | . 5 . Damage Inflicted 635 | 28 607 . Guns 171 | 28 143 . Cannons . | . . . Explosions 46 | . 46 . Melee 418 | . 418 . Ramming . | . . . Kinetic . | . . . Thermal 46 | . 46 . Explosive . | . . . Electromagnetic 171 | 28 143 . Impact 418 | . 418 . Slashing . | . . . Piercing . | . . . Highest Corruption . | . . . Average Corruption . | . . . Corruption Purged . | . . . Corruption Blocked . | . . . Overload Shots . | . . . Overflow Damage 67 | . 67 . Projectiles . | . . . Explosions 6 | . 6 . Melee 61 | . 61 . Knockbacks . | . . . Impact . | . . . Kinetic . | . . . Secondary . | . . . Self-Inflicted Damage 36 | . 36 . Shots 1 | . 1 . Rammed . | . . . Targets Rammed . | . . . Kicked . | . . . Crushed . | . . . Highest Temperature 96 | 36 96 . Average Temperature 32 | 20 34 . Received Heat Transfer 96 | . 96 . Siege Activations . | . . . Martial Activations . | . . . Shielding Activations . | . . . Robots Disrupted . | . . . Combat Hostiles . | . . . Robots Corrupted 1 | . 1 . Combat Hostiles 1 | . 1 . Parts Fried . | . . . Impact Corruptions 4 | . 4 . Robots Melted . | . . . Combat Hostiles . | . . . Parts Melted . | . . . Heat Transferred 50 | . 50 . Parts Sabotaged . | . . . Parts Stolen . | . . . Parts Stripped . | . . . Power Chain Reactions 1 | . 1 . Alert | -11 -10 -10 ------- Run | Yrd Mat Sub Maximum Alert Level . | . . . Low Security (%) 100 | 100 100 . Level 1 . | . . . Level 2 . | . . . Level 3 . | . . . Level 4 . | . . . Level 5 . | . . . High Security . | . . . Max Security . | . . . Peak Influence 50 | 5 50 . Initial . | . . . Average 11 | . 13 . Influence Increases 179 | 5 174 . Destroy 0b10 Robot/C 120 | . 120 . Destroy 0b10 Robot/NC 15 | 5 10 . Destroy Leader 22 | . 22 . Destroy Structure 7 | . 7 . Lose Combat Pursuer 15 | . 15 . Influence Decreases 179 | 5 147 27 Entered New Map 14 | . . 14 Time Decay 140 | 5 125 10 Lost Part 25 | . 22 3 Squads Dispatched . | . . . Investigation . | . . . Extermination . | . . . Reinforcement . | . . . Assault . | . . . Garrison . | . . . Intercept . | . . . Searches Triggered . | . . . Construction Impeded . | . . . Haulers Reinforced . | . . . Active Scanning Responses . | . . . Cargo Convoy Interrupts . | . . . Stealth | -11 -10 -10 --------- Run | Yrd Mat Sub Distress Signals . | . . . Communications Jammed . | . . . Distress Signals . | . . . Times Spotted 16 | . 14 2 Peak Tracking Total 3 | . 3 2 Tactical Retreats 1 | . 1 . Traps | -11 -10 -10 ------- Run | Yrd Mat Sub Traps Triggered . | . . . Indirectly . | . . . Trap Hack Attempts . | . . . Triggered . | . . . Disarmed . | . . . Reprogrammed . | . . . Reused . | . . . Traps Extracted . | . . . Installed . | . . . Triggered . | . . . Machines | -11 -10 -10 ---------- Run | Yrd Mat Sub Machines Disabled . | . . . Max in Single Turn . | . . . Machines Repaired . | . . . Machines Dismantled . | . . . Machines Sabotaged . | . . . Overloaded Fab Kills . | . . . Hacking | -11 -10 -10 --------- Run | Yrd Mat Sub Machines Accessed . | . . . Terminals . | . . . Fabricators . | . . . Repair Stations . | . . . Recycling Units . | . . . Scanalyzers . | . . . Garrison Access . | . . . Total Hacks . | . . . Successful . | . . . Failed . | . . . Catastrophic . | . . . Database Lockouts . | . . . Manual . | . . . Terminals . | . . . Fabricators . | . . . Repair Stations . | . . . Recycling Units . | . . . Scanalyzers . | . . . Garrison Access . | . . . Terminal Hacks . | . . . Fabricator Hacks . | . . . Repair Station Hacks . | . . . Recycling Unit Hacks . | . . . Scanalyzer . | . . . Garrison Access Hacks . | . . . Unauthorized Hacks . | . . . Terminals . | . . . Fabricators . | . . . Repair Stations . | . . . Recycling Units . | . . . Scanalyzers . | . . . Garrison Access . | . . . Data Cores Recovered . | . . . Used . | . . . Hacking Detections . | . . . Full Trace Events . | . . . Feedback Events . | . . . Feedback Blocked . | . . . Robot Schematics Acquired . | . . . Robots Built . | . . . Authchips . | . . . Time . | . . . Total Robot Build Rating . | . . . Part Schematics Acquired . | . . . Parts Built . | . . . Authchips . | . . . Time . | . . . Total Part Build Rating . | . . . Part Studies Acquired . | . . . Parts Repaired . | . . . Time . | . . . Parts Recycled . | . . . Recycled Matter . | . . . Retrieved Matter . | . . . Retrieved Components . | . . . Parts Scanalyzed . | . . . Part Schematics Acquired . | . . . Parts Damaged . | . . . Bothacking | -11 -10 -10 ------------ Run | Yrd Mat Sub Used RIF Installer . | . . . Robots Hacked . | . . . Non-combat . | . . . Combat . | . . . Robot Hacks Applied . | . . . Relay Couplers Released . | . . . Fabnet Peak Effective % . | . . . Robots Rewired . | . . . Allies Hacked . | . . . Hacks Repelled . | . . . Allies | -11 -10 -10 -------- Run | Yrd Mat Sub Total Allies . | . . . Largest Group . | . . . Highest-Rated Group . | . . . Highest-Rated Ally . | . . . Total Orders . | . . . Ally Attacks . | . . . Total Damage . | . . . Kills . | . . . Allies Corrupted . | . . . Allies Melted . | . . . Intel | -11 -10 -10 ------- Run | Yrd Mat Sub Active Infowar (turns) . | . . . Robot Analysis Total . | . . . Derelict Logs Recovered . | . . . Drone Launches . | . . . Drone Recoveries . | . . . Exploration | -11 -10 -10 ------------- Run | Yrd Mat Sub Turns Passed 617 | 88 500 29 Spaces Moved 313 | 53 243 17 Core 18 | 14 . 4 Treads 295 | 39 243 13 Legs . | . . . Wheels . | . . . Hover . | . . . Flight . | . . . Fastest Speed 50 | 50 160 160 Average Speed 156 | 130 160 181 Slowest Speed 250 | 160 160 250 Overloaded Moves . | . . . Propulsion Burnouts . | . . . Robots Hopped . | . . . Potential Cave-ins . | . . . Cave-ins Triggered . | . . . Exploration Rate (%) 12 | 5 30 3 Regions Visited 2 Branch Regions 1 Pre-discovered Areas . | . . . Known Exits Taken . | . . . Unknown Exits Taken 2 | 1 1 . Scrap Searched . | . . . Spaces Dug . | . . . Terrain Destroyed 6 | . 6 . Melee . | . . . Projectile . | . . . AOE 6 | . 6 . Terrain Rammed . | . . . Walls Destroyed . | . . . Machines Disabled . | . . . Actions | -11 -10 -10 --------- Run | Yrd Mat Sub Total 380 | 68 295 17 Wait 14 | . 14 . Move 311 | 52 242 17 Hop . | . . . Pick Up 13 | 8 5 . Fast Attach . | . . . Attach 9 | 6 3 . Detach . | . . . Swap . | . . . Drop . | . . . Fire 13 | 2 11 . Melee 20 | . 20 . Ram . | . . . Kick . | . . . Crush . | . . . Escape Stasis . | . . . Rewire . | . . . Trap . | . . . Miscellaneous . | . . . Route ------- -11/Scrapyard -10/Materials (discovered 2 exits: [*Min] / [*Sub]) -10/Subcaves History --------- Turn | Location | Event 4 | -11/Scrapyard | Discovered new exit (range 15) 89 | -11/Scrapyard | Entered Materials 256 | -10/Materials | Discovered new exit (range 12) 318 | -10/Materials | Build established: Mutant 466 | -10/Materials | Lost 3 parts (1p2w) 574 | -10/Materials | Discovered new exit (range 7) 589 | -10/Materials | Entered Subcaves 590 | -10/Subcaves | Approached by a straggling Scientist 615 | -10/Subcaves | Core integrity fell below 50% 617 | -10/Subcaves | Core integrity fell below 20% 618 | -10/Subcaves | Destroyed by C0-DWA(R) with Subdweller Shrapnel Launcher Last Messages --------------- 00540_ S-10 Pest destroyed. 00551_ Sneak attack on R-06 Scavenger. 00551_ R-06 Scavenger destroyed. 00560_ K-01 Serf cleans the Pressure Siphon. 00574_ EXIT=FOUND LOCATION=UNKNOWN AMBIENT_HEAT=-10 GOAL=ESCAPE 00590_ U0-8VY(c): "Thank the algorithms! I was beginning to lose hope I'd never make it past all the Subs lurking out here." 00593_ U0-8VY(c): "Hey, let me tag along and I can get us both out of this nasty situation. At least I think I can... The group I got separated from was talking about a shortcut back to the UFD." 00610_ Lgt. Treads destroyed. 00614_ U0-8VY(c) destroyed. 00618_ A thin wall crumbles away, revealing a door. Map ----- +----------------------------------------------------+ | ?????????????????????????????????????????????????? | | ?????????????????????????????????????????????????? | | ?????????????????????????????????????????????????? | | ?????????????????????????????????????????????????? | | ?????????????????????????????????????????????????? | | ???????????????????????????? ???????????????????? | | ???????????????????????????? ???????????????????? | | ???????????????????????????? ???????????????????? | | ???????????????????????????? #??????????????????? | | ???????????????????????????? ???????????????????? | | ???????????????????????????# ???????????????????? | | ??????????????????????????? ???????????????????? | | ???????????????????????????# ?? ##??????????????? | | ???????????????????????????# ??""##?????????????? | | ???????????????????????????# "?""" #?????????????? | | ??????????????????????????? R#? ##????????????? | | ??????????????????????????## # #????????????? | | ??????????????????????????# R#; "# #????????????? | | ????????????????????????### ;#"" #?????????????? | | ?????????????????????#### " #?????????????? | | ?????????????????????#; % #?????????????? | | ?????????????????????# ##????????????? | | ????????????????????## #????????????? | | ???????????????????## ; #????????????? | | ???????????????????# % #????????????? | | ???????????????????# @ ;;#??????????? | | ??????????????????" ;#??????????? | | ??????????????????## = ;#??????????? | | ???????????????????## ; ;##??????????? | | ??????????????????? ;; ;;#???????????? | | ??????????????????## %#;;; ;;; #???????????? | | ???????????????????## # ;;; ; #???????????? | | ????????????????????# ?###### # #####???????????? | | ???????????????????? ??????# ##$#???????????????? | | ??????????????????? #??????? ?##???????????????? | | ??????????????????##???????? ??????????????????? | | ????????????????????????????####?????????????????? | | ?????????????????????????????????????????????????? | | ?????????????????????????????????????????????????? | | ?????????????????????????????????????????????????? | | ?????????????????????????????????????????????????? | | ?????????????????????????????????????????????????? | | ?????????????????????????????????????????????????? | | ?????????????????????????????????????????????????? | | ?????????????????????????????????????????????????? | | ?????????????????????????????????????????????????? | | ?????????????????????????????????????????????????? | | ?????????????????????????????????????????????????? | | ?????????????????????????????????????????????????? | | ?????????????????????????????????????????????????? | +----------------------------------------------------+ Best States ------------- Heat Dissipation 25 Energy Generation 10 Energy Capacity 250 Matter Stores 300 Matter Capacity 300 Sight Range 16 Terrain Scan Density 10 Evasion (%) 50 Recoil Reduction 2 Item Schematics ----------------- None Robot Schematics ------------------ None Fabricated ------------ Nothing Repaired ---------- Nothing Studied --------- None Alien Tech Used ----------------- None Achievements -------------- None Challenges ------------ None Game ------ Seed SapperFusionMediator Manual? 0 Play Time 00:04:03 Cumulative 17.0 hours Start 2025.11.04 @ 16:56:08 End 2025.11.04 @ 17:01:36 Sessions 1 Manual Loads 0 Difficulty Rogue Special Mode None Game No. 43 Rogue 43 Adventurer 0 Explorer 0 Win Type - Total 0 Types 0/0/0/0/0/0/0/0/0/0 Lore% 9 Gallery% 21 Achievement% 16 Wizard Run 0 Options --------- Layout 1 ASCII 0 Keyboard 1 Movement Vi Keybinds 0 Fullscreen 1 Font 24/Smallcaps Map View 50x35 Zoom Use 0% Tactical HUD 1 Map Filters NONE Filters NONE Steam 1 RUN: 67636ea1-124c-479f-afd7-f3a6688b1b1b